bitfinex/quotes_ETHUSD_20220105
["timestamp","ask_amount","ask_price","bid_price","bid_amount"]
[1641388901942,30.03674716,3803.1,3803.0,0.00568424]
[1641388902143,30.69440716,3803.1,3802.4,2.0]
[1641388902344,5.43366,3802.8,3802.5,0.00852635]
[1641388902543,4.28644867,3802.7,3802.5,0.00852635]
[1641388902947,5.18722414,3802.6,3802.5,0.00852635]
[1641388903181,5.56922414,3802.6,3802.5,0.00852635]
[1641388903386,6.56922414,3802.6,3802.5,0.30852635]
[1641388903584,4.21922414,3802.6,3802.5,0.30852635]
[1641388903783,1.382,3802.6,3802.5,0.30852635]
[1641388904183,0.382,3802.6,3802.5,0.30852635]
[1641388904385,0.382,3802.6,3802.5,2.30852635]
[1641388904988,0.382,3802.6,3802.5,5.28225606]
[1641388907636,0.382,3802.6,3802.5,4.58225606]
[1641388916944,9.958,3802.6,3802.5,2.98225606]
[1641388917141,10.958,3802.6,3802.5,2.98225606]
[1641388917841,6.158,3802.6,3802.5,2.98225606]
[1641388918289,6.84843993,3802.6,3802.5,0.30852635]
[1641388918688,22.34843993,3802.6,3802.5,0.30852635]
[1641388920393,22.34843993,3802.6,3802.5,0.00852635]
[1641388920694,6.84843993,3802.6,3802.5,0.00852635]
[1641388920892,6.84843993,3802.6,3802.0,1.6]
[1641388920893,4.25,3802.2,3802.1,0.01080005]
[1641388921096,9.408,3802.2,3802.1,0.01080005]
[1641388921693,9.408,3802.2,3802.1,2.9849833]
[1641388921945,5.81572,3802.2,3802.1,2.9849833]
[1641388922138,5.158,3802.2,3802.1,2.9849833]
[1641388923341,5.158,3802.2,3802.1,0.01080005]
[1641388924547,5.158,3802.2,3802.0,1.89342349]
[1641388924745,5.158,3802.2,3802.0,1.59342349]
[1641388925147,7.94210255,3802.2,3802.0,1.59342349]
[1641388925346,2.75400536,3802.1,3802.0,1.59342349]
[1641388925546,3.13600536,3802.1,3802.0,1.59342349]
[1641388925786,0.382,3802.1,3802.0,1.89342349]
[1641388925988,3.18670297,3802.1,3802.0,1.89342349]
[1641388926489,7.96270297,3802.1,3802.0,1.89342349]
[1641388926688,23.46270297,3802.1,3802.0,1.89342349]
[1641388927493,7.96270297,3802.1,3802.0,1.89342349]
[1641388927893,5.08043812,3802.1,3802.0,1.89342349]
[1641388928594,7.87159379,3802.1,3802.0,1.89342349]
[1641388929195,5.08043812,3802.1,3802.0,1.89342349]
[1641388929641,7.85875771,3802.1,3802.0,1.89342349]
[1641388929941,25.95875771,3802.1,3802.0,1.89342349]
[1641388930142,10.45875771,3802.1,3802.0,1.89342349]
[1641388930542,7.68043812,3802.1,3802.0,1.89342349]
[1641388930742,11.52853829,3802.1,3802.0,1.6]
[1641388930943,11.52853829,3802.1,3802.0,0.6]
[1641388930944,27.02853829,3802.1,3802.0,0.6]
[1641388931142,27.02853829,3802.1,3802.0,0.3]
[1641388931342,27.02853829,3802.1,3801.7,0.6]
[1641388931549,4.776,3801.8,3801.7,0.6]
[1641388931743,23.75341379,3801.8,3801.7,0.6]
[1641388931944,24.75341379,3801.8,3801.7,0.3]
[1641388932144,24.75341379,3801.8,3801.2,1.3]
[1641388932445,20.276,3801.6,3801.3,0.00454738]
[1641388932744,16.15792,3801.4,3801.3,0.00454738]
[1641388932945,16.53992,3801.4,3801.3,0.00454738]
[1641388933191,17.18882121,3801.4,3801.3,0.00454738]
[1641388934191,22.96482121,3801.4,3801.3,0.00454738]
[1641388934391,28.36082118,3801.4,3801.3,0.00454738]
[1641388934787,29.04767807,3801.4,3801.3,0.00454738]
[1641388935890,0.65808,3801.0,3800.6,6.39]
[1641388936092,4.776,3800.7,3800.6,6.39]
[1641388936293,20.658,3800.7,3800.6,6.39]
[1641388936493,21.86646143,3800.7,3800.6,6.39397897]
[1641388936795,21.658,3800.7,3800.6,6.39397897]
[1641388937039,21.658,3800.7,3800.6,6.99397897]
[1641388939646,21.658,3800.7,3800.6,0.55397897]
[1641388939647,26.9158,3800.7,3800.6,0.55397897]
[1641388939846,26.9158,3800.7,3800.6,0.25397897]
[1641388939847,29.5158,3800.7,3800.6,0.25397897]
[1641388940047,6.75,3800.6,3799.5,1.3]
[1641388940248,20.276,3799.7,3799.6,0.6]
[1641388940449,20.658,3799.7,3799.6,0.60568423]
[1641388940686,20.658,3799.7,3799.6,3.58142236]
[1641388940889,21.658,3799.7,3799.6,2.98142236]
[1641388941293,26.9158,3799.7,3799.6,2.98142236]
[1641388941791,26.9158,3799.7,3799.6,0.00568423]
[1641388942095,26.9158,3799.7,3799.6,0.3]
[1641388942292,26.9158,3799.7,3799.6,2.97573813]
[1641388942492,26.9158,3799.7,3799.6,3.57573813]
[1641388944293,27.63953408,3799.7,3799.6,3.57573813]
[1641388944550,27.63953408,3799.7,3799.6,2.97573813]
[1641388944755,29.61452408,3799.7,3799.6,2.97573813]
[1641388944951,29.61452408,3799.7,3799.5,0.00625266]
[1641388945157,30.94709929,3799.6,3799.5,0.00625266]
[1641388945354,30.94709929,3799.6,3799.3,6.14]
[1641388945355,36.58689929,3799.6,3799.4,0.00682108]
[1641388945553,6.45,3799.4,3799.3,6.14]
[1641388945752,20.22950271,3799.4,3799.3,6.14]
[1641388945952,36.72950271,3799.4,3799.3,6.14]
[1641388946152,36.72950271,3799.4,3798.3,1.23175504]
[1641388946354,20.276,3798.4,3798.3,1.23175504]
[1641388946555,22.31639,3798.4,3798.3,1.23175504]
[1641388947357,22.31639,3798.4,3798.1,1.23175504]
[1641388947654,20.276,3798.2,3798.1,1.23175504]
[1641388947855,20.658,3798.2,3798.1,1.23175504]
[1641388948056,5.158,3798.2,3798.1,1.23914454]
[1641388948689,5.158,3798.2,3798.1,0.0073895]
[1641388948889,5.158,3798.2,3798.1,0.6073895]
[1641388949089,5.158,3798.2,3798.1,0.3]
[1641388949290,5.158,3798.2,3798.1,1.53900264]
[1641388949694,0.382,3798.2,3798.1,1.53900264]
[1641388950498,0.00368806,3798.8,3798.1,1.53900264]
[1641388950695,0.382,3798.7,3798.1,1.53900264]
[1641388950895,2.6,3798.2,3798.1,2.85536264]
[1641388951097,2.6,3798.2,3798.1,1.61636]
[1641388951298,2.6,3798.2,3798.1,1.3237495]
[1641388951500,2.982,3798.2,3798.1,1.3073895]
[1641388951696,7.982,3798.2,3798.1,1.3073895]
[1641388952545,5.8507,3798.2,3798.1,8.0573895]
[1641388952747,0.00368806,3798.8,3798.2,6.75]
[1641388952945,0.00368806,3798.8,3798.7,6.76225217]
[1641388953143,0.00368806,3798.8,3798.7,7.06225217]
[1641388953343,0.00368806,3798.8,3798.7,7.6099299]
[1641388953546,0.00368806,3798.8,3798.7,7.9099299]
[1641388953743,0.00368806,3798.8,3798.7,1.1599299]
[1641388954543,0.00368806,3798.8,3798.7,4.8099299]
[1641388954743,0.00368806,3798.8,3798.7,1.1599299]
[1641388955346,5.6398,3799.4,3799.2,1.12976731]
[1641388955545,0.00368806,3799.2,3798.8,1.31612]
[1641388955792,0.00368806,3799.2,3799.0,1.3]
[1641388955983,0.00368806,3799.2,3799.1,0.3]
[1641388956184,0.00368806,3799.2,3799.1,0.30170527]
[1641388956385,0.00368806,3799.2,3799.1,1.67305585]
[1641388957187,5.6398,3799.4,3799.1,1.67305585]
[1641388957595,5.6398,3799.4,3799.2,1.30113685]
[1641388957798,5.6398,3799.4,3799.2,2.25915685]
[1641388957995,5.6398,3799.4,3799.3,1.6]
[1641388958197,5.6398,3799.4,3799.3,2.1983]
[1641388958397,5.2578,3799.4,3799.3,8.9483]
[1641388958598,5.2578,3799.4,3799.3,9.2483]
[1641388958797,4.8729,3799.4,3799.3,9.2483]
[1641388958996,3.628,3799.4,3799.3,9.2483]
[1641388959197,0.382,3800.3,3799.4,6.75]
[1641388959444,0.382,3800.3,3799.7,0.65782]
[1641388959645,0.382,3800.3,3800.1,1.3]
[1641388959646,0.00454739,3800.2,3800.1,1.3]
[1641388959845,0.00454739,3800.2,3800.1,1.6]
[1641388960448,0.00454739,3800.2,3800.1,2.44312919]
[1641388960744,2.60454739,3800.2,3800.1,2.44312919]
[1641388962446,2.60454739,3800.2,3800.1,9.20536142]
[1641388963048,0.00368806,3800.6,3800.1,9.20536142]
[1641388963292,0.00368806,3800.6,3800.4,1.3]
[1641388963490,0.00170527,3800.5,3800.4,1.6]
[1641388965094,0.00368806,3800.6,3800.5,5.2]
[1641388965296,0.382,3801.5,3800.8,1.31527]
[1641388965297,0.38068806,3801.5,3800.8,1.31527]
[1641388965701,0.00511581,3801.4,3800.8,1.31527]
[1641388965896,0.00511581,3801.4,3801.2,0.65766]
[1641388966095,0.00454739,3801.3,3801.2,1.3]
[1641388966295,0.00454739,3801.3,3801.1,1.3]
[1641388966496,0.00454739,3801.3,3801.2,0.3]
[1641388966696,0.38068806,3801.5,3801.2,0.3]
[1641388967143,0.38068806,3801.5,3801.4,1.3]
[1641388967545,0.38637229,3801.5,3801.4,1.6]
[1641388968348,0.38637229,3801.5,3801.4,2.83175504]
[1641388968543,0.38637229,3801.5,3801.4,5.80640976]
[1641388969246,0.38637229,3801.5,3801.4,6.21273749]
[1641388970247,2.98637229,3801.5,3801.4,6.21273749]
[1641388971393,2.98637229,3801.5,3801.4,4.57465472]
[1641388971794,2.98637229,3801.5,3801.4,5.12513899]
[1641388973396,2.98637229,3801.5,3801.4,4.57465472]
[1641388973595,2.98637229,3801.5,3801.4,1.6]
[1641388979497,2.98637229,3801.5,3801.4,1.3]
[1641388980696,2.98637229,3801.5,3801.4,1.6]
[1641388980897,2.98637229,3801.5,3801.4,1.9]
[1641388983744,3.98637229,3801.5,3801.4,1.9]
[1641388983947,19.48637229,3801.5,3801.4,1.3]
[1641388985144,3.98637229,3801.5,3801.4,1.9]
[1641388985346,8.98637229,3801.5,3801.4,1.9]
[1641388986099,7.98637229,3801.5,3801.4,1.9]
[1641388988296,8.98637229,3801.5,3801.4,1.3]
[1641388988495,7.98637229,3801.5,3801.4,1.3]
[1641388989453,7.98637229,3801.5,3801.4,1.6]
[1641388989652,7.98637229,3801.5,3801.4,1.9]
[1641388989853,7.60568423,3801.5,3801.4,2.0808]
[1641388990053,2.34565423,3801.5,3801.4,2.0808]
[1641388990554,0.382,3802.4,3802.2,0.66448036]
[1641388990953,0.00454739,3802.3,3802.2,0.66448036]
[1641388991353,0.38995793,3802.9,3802.2,0.66448036]
[1641388991553,2.6,3802.4,3802.2,0.66448036]
[1641388991954,2.6,3802.4,3802.3,1.31482]
[1641388992455,2.98711581,3802.4,3802.3,1.61482]
[1641388992655,2.98711581,3802.4,3802.3,1.31482]
[1641388992855,0.38711581,3802.4,3802.3,1.31482]
[1641388993496,0.38711581,3802.4,3802.3,4.15859906]
[1641388994496,0.38711581,3802.4,3802.3,2.93162547]
[1641388994697,0.38711581,3802.4,3802.3,3.53162547]
[1641389000048,0.38711581,3802.4,3802.3,4.79110905]
[1641389000690,0.38711581,3802.4,3802.3,3.53162547]
[1641389001291,0.38711581,3802.4,3802.3,4.79113011]
[1641389002097,0.38711581,3802.4,3802.3,3.53162547]
[1641389002293,0.38711581,3802.4,3802.3,2.93162547]
[1641389003595,0.38711581,3802.4,3802.3,3.53162547]
[1641389003798,0.38711581,3802.4,3802.3,4.79341069]
[1641389004653,0.38711581,3802.4,3802.3,3.53162547]
[1641389005251,0.38711581,3802.4,3802.3,4.79341069]
[1641389005848,0.38711581,3802.4,3802.3,3.53162547]
[1641389006448,0.38711581,3802.4,3802.3,6.11477954]
[1641389006649,0.38711581,3802.4,3802.3,3.53162547]
[1641389006847,0.38711581,3802.4,3802.3,6.12202621]
[1641389007047,0.38711581,3802.4,3802.3,3.53162547]
[1641389007253,0.38711581,3802.4,3802.3,6.13672748]
[1641389008210,0.38711581,3802.4,3802.3,7.39588044]
[1641389008900,0.38711581,3802.4,3802.3,3.53162547]
[1641389011405,0.38711581,3802.4,3802.3,6.18801111]
[1641389011608,0.38711581,3802.4,3802.3,3.53162547]
[1641389012446,0.38711581,3802.4,3802.3,6.12910027]
[1641389013044,0.00511581,3802.4,3802.3,6.12910027]
[1641389014850,0.00364702,3803.1,3802.9,1.03740261]
[1641389015052,0.00364702,3803.1,3802.9,2.93740261]
[1641389015251,0.382,3803.3,3802.9,2.93740261]
[1641389015252,0.00341054,3803.0,3802.9,2.93740261]
[1641389015698,0.00454739,3803.2,3802.9,2.93740261]
[1641389016199,0.00397897,3803.1,3802.9,2.93740261]
[1641389016401,0.00397897,3803.1,3803.0,1.31469]
[1641389016600,0.00454739,3803.2,3803.0,1.31469]
[1641389016801,0.00397897,3803.1,3803.0,5.54631547]
[1641389017003,0.00397897,3803.1,3803.0,4.24631547]
[1641389018006,0.00397897,3803.1,3803.0,6.8207248]
[1641389018707,0.00397897,3803.1,3803.0,4.24631547]
[1641389024003,0.38597897,3803.1,3803.0,4.84631547]
[1641389026603,1.38597897,3803.1,3803.0,4.84631547]
[1641389028851,0.38597897,3803.1,3803.0,4.84631547]
[1641389032607,0.00397897,3803.1,3803.0,7.68478129]
[1641389032802,0.00397897,3803.1,3803.0,4.84631547]
[1641389034648,0.00397897,3803.1,3803.0,7.53154443]
[1641389035346,0.00397897,3803.1,3803.0,6.52393954]
[1641389036148,0.00397897,3803.1,3803.0,9.10287056]
[1641389036348,0.00397897,3803.1,3803.0,4.84631547]
[1641389036548,0.00397897,3803.1,3803.0,3.53162547]
[1641389039702,0.00397897,3803.1,3803.0,4.79286265]
[1641389040504,0.00397897,3803.1,3803.0,3.53162547]
[1641389042242,0.00397897,3803.1,3803.0,4.79286265]
[1641389043944,0.00397897,3803.1,3803.0,3.53162547]
[1641389046391,2.85397897,3803.1,3803.0,2.93162547]
[1641389046594,3.23597897,3803.1,3803.0,2.93162547]
[1641389047192,3.232,3803.1,3803.0,2.93162547]
[1641389047792,3.232,3803.1,3803.0,3.23162547]
[1641389048295,4.232,3803.1,3803.0,3.53162547]
[1641389048694,1.382,3803.1,3803.0,3.53162547]
[1641389048895,1.382,3803.1,3803.0,0.6]
[1641389049947,1.382,3803.1,3803.0,0.3]
[1641389049948,0.382,3803.1,3803.0,0.3]
[1641389050151,1.382,3803.1,3803.0,0.6]
[1641389050449,5.382,3803.1,3803.0,0.6]
[1641389051450,5.382,3803.1,3803.0,0.3]
[1641389052148,5.382,3803.1,3803.0,0.6]
[1641389052352,5.382,3803.1,3803.0,0.3]
[1641389052549,5.382,3803.1,3803.0,0.6]
[1641389053205,5.382,3803.1,3803.0,0.3]
[1641389053598,5.382,3803.1,3803.0,0.6]
[1641389054397,5.382,3803.1,3802.5,2.54827902]
[1641389054600,5.382,3803.1,3803.0,0.3]
[1641389055100,5.382,3803.1,3802.3,0.6]
[1641389055301,5.382,3803.1,3802.2,1.7323]
[1641389055502,0.00341054,3803.0,3802.2,1.7323]
[1641389055702,0.382,3802.9,3802.2,1.7323]
[1641389055901,0.38484212,3802.9,3802.2,1.6823]
[1641389056105,0.0022737,3802.8,3802.3,2.87404608]
[1641389056303,0.382,3802.7,3802.3,2.87404608]
[1641389056502,0.38370527,3802.7,3802.3,2.87404608]
[1641389056702,0.00113685,3802.6,3802.3,2.87404608]
[1641389056945,0.382,3802.5,3802.3,2.87404608]
[1641389057146,0.332,3802.5,3802.3,2.87404608]
[1641389062091,0.332,3802.5,3802.3,4.87404608]
[1641389062293,0.332,3802.5,3802.3,7.42528176]
[1641389062496,0.00113685,3802.6,3802.4,8.7226257]
[1641389062696,0.00113685,3802.6,3802.4,2.0]
[1641389063098,0.00113685,3802.6,3802.5,4.0074]
[1641389063599,0.00113685,3802.6,3802.5,3.53144608]
[1641389064468,0.00113685,3802.6,3802.5,2.87404608]
[1641389064656,0.00113685,3802.6,3802.5,5.12039754]
[1641389065255,0.00113685,3802.6,3802.5,5.09251307]
[1641389065457,0.00113685,3802.6,3802.5,4.55167015]
[1641389065656,0.00113685,3802.6,3802.5,5.20907015]
[1641389066257,0.00113685,3802.6,3802.5,2.87404608]
[1641389068201,0.00113685,3802.6,3802.5,3.53145608]
[1641389069902,0.00113685,3802.6,3802.5,2.87404608]
[1641389070303,0.38313685,3802.6,3802.5,2.87404608]
[1641389071104,3.53313685,3802.6,3802.5,2.87404608]
[1641389071404,0.38313685,3802.6,3802.5,2.87404608]
[1641389071809,5.38313685,3802.6,3802.5,2.87404608]
[1641389072745,20.88313685,3802.6,3802.5,2.87404608]
[1641389072946,20.88313685,3802.6,3802.5,3.17404608]
[1641389078200,20.88313685,3802.6,3802.5,0.3]
[1641389079001,21.88313685,3802.6,3802.5,0.3]
[1641389080252,22.95755497,3802.6,3802.5,0.3]
[1641389080451,22.95755497,3802.6,3802.5,2.3]
[1641389082851,21.88313685,3802.6,3802.5,2.3]
[1641389084308,22.95755143,3802.6,3802.5,2.3]
[1641389085012,7.45755143,3802.6,3802.5,2.3]
[1641389085212,6.45755143,3802.6,3802.5,2.3]
[1641389086613,5.0,3802.6,3802.5,8.01054102]
[1641389086812,0.382,3803.3,3802.6,4.45]
[1641389087069,0.382,3803.3,3802.8,0.65733]
[1641389087271,0.382,3803.3,3803.1,2.0]
[1641389087669,0.382,3803.3,3803.1,2.3]
[1641389087870,0.00625266,3803.5,3803.2,0.3]
[1641389088275,0.00568424,3803.4,3803.2,0.3]
[1641389088474,0.00568424,3803.4,3803.3,2.0]
[1641389088673,0.382,3803.8,3803.3,2.0]
[1641389088875,0.382,3803.8,3803.3,5.16985329]
[1641389089077,0.00738951,3803.7,3803.4,0.3]
[1641389089478,0.00682109,3803.6,3803.4,3.16985329]
[1641389089875,0.00625266,3803.5,3803.4,3.16985329]
[1641389090276,0.00625266,3803.5,3803.4,0.3]
[1641389092604,0.00625266,3803.5,3803.3,0.3]
[1641389093002,0.00568424,3803.4,3803.3,2.0]
[1641389093206,0.00568424,3803.4,3803.3,2.3]
[1641389095660,0.38768424,3803.4,3803.3,2.3]
[1641389099301,0.38768424,3803.4,3803.3,3.56961465]
[1641389100005,0.38768424,3803.4,3803.3,2.3120392]
[1641389100205,0.38768424,3803.4,3803.3,2.3]
[1641389101705,0.38768424,3803.4,3803.3,3.56871595]
[1641389102654,0.38768424,3803.4,3803.3,2.3]
[1641389104759,0.38768424,3803.4,3803.3,2.0]
[1641389105559,0.38768424,3803.4,3803.3,4.97338842]
[1641389106001,0.38768424,3803.4,3803.3,5.27338842]
[1641389106407,0.38768424,3803.4,3803.3,2.3]
[1641389107407,0.38768424,3803.4,3803.3,3.1893]
[1641389107806,0.38768424,3803.4,3803.3,6.16260616]
[1641389113061,0.38768424,3803.4,3803.3,6.81984616]
[1641389113303,0.38768424,3803.4,3803.3,6.16260616]
[1641389114707,0.38768424,3803.4,3803.3,5.86260616]
[1641389116110,0.38768424,3803.4,3803.3,6.16260616]
[1641389116949,0.38768424,3803.4,3803.3,7.43132211]
[1641389117550,0.38768424,3803.4,3803.3,6.16260616]
[1641389123116,0.38768424,3803.4,3803.3,5.86260616]
[1641389123319,0.382,3803.4,3803.3,5.86260616]
[1641389124455,5.158,3803.4,3803.3,6.16260616]
[1641389124660,5.158,3803.4,3803.3,4.97330616]
[1641389124861,6.158,3803.4,3803.3,4.97330616]
[1641389125064,4.15,3803.3,3803.2,3.24749775]
[1641389125260,0.65754,3803.1,3802.6,1.26871595]
[1641389125459,4.776,3802.9,3802.6,1.26871595]
[1641389125759,0.3842737,3802.8,3802.7,2.0]
[1641389126663,0.3842737,3802.8,3802.7,2.6]
[1641389128604,0.3842737,3802.8,3802.7,0.6]
[1641389128802,0.3842737,3802.8,3802.7,2.3]
[1641389129205,0.3842737,3802.8,3802.7,0.3]
[1641389129402,0.3842737,3802.8,3802.6,2.29645606]
[1641389129607,0.3842737,3802.8,3802.7,0.3]
[1641389129806,0.382,3802.8,3802.7,2.3]
[1641389130007,0.382,3802.8,3802.7,0.3]
[1641389130609,0.382,3802.8,3802.7,5.50736]
[1641389131010,0.382,3802.8,3802.7,3.50736]
[1641389131212,0.382,3802.8,3802.7,2.95736]
[1641389131611,0.382,3802.8,3802.7,0.3]
[1641389132060,0.382,3802.8,3802.7,2.3]
[1641389132259,0.382,3802.8,3802.7,0.3]
[1641389132461,0.382,3802.8,3802.7,2.3]
[1641389133161,0.382,3802.8,3802.7,2.0]
[1641389133663,0.382,3802.8,3802.7,2.3]
[1641389133866,0.382,3802.8,3802.6,0.3]
[1641389134065,0.382,3802.8,3802.7,0.3]
[1641389134470,2.982,3802.8,3802.7,2.3]
[1641389134666,2.982,3802.8,3802.6,0.3]
[1641389134867,2.982,3802.8,3802.7,2.0]
[1641389135068,2.982,3802.8,3802.7,0.3]
[1641389135270,2.982,3802.8,3802.7,2.0]
[1641389135703,2.982,3802.8,3802.7,2.3]
[1641389135906,2.982,3802.8,3802.7,0.3]
[1641389136308,2.982,3802.8,3802.7,2.0]
[1641389136506,2.982,3802.8,3802.6,0.3]
[1641389136707,2.982,3802.8,3802.7,2.0]
[1641389136906,2.982,3802.8,3802.6,0.3]
[1641389137111,2.982,3802.8,3802.7,0.3]
[1641389137308,2.982,3802.8,3802.7,1.56984374]
[1641389137509,2.982,3802.8,3802.7,3.56984374]
[1641389137708,2.982,3802.8,3802.7,2.3]
[1641389138315,2.982,3802.8,3802.7,2.0]
[1641389138515,2.982,3802.8,3802.7,0.3]
[1641389138717,2.982,3802.8,3802.7,2.3]
[1641389138916,2.982,3802.8,3802.7,2.0]
[1641389139572,2.982,3802.8,3802.7,2.3]
[1641389139972,2.982,3802.8,3802.7,0.3]
[1641389140172,2.982,3802.8,3802.6,1.26983278]
[1641389140374,2.982,3802.8,3802.7,2.0]
[1641389140973,2.982,3802.8,3802.5,1.26983278]
[1641389141176,3.6394,3802.8,3802.7,2.0]
[1641389141474,3.6394,3802.8,3802.7,2.3]
[1641389141673,3.6394,3802.8,3802.7,2.6]
[1641389141873,2.982,3802.8,3802.7,2.6]
[1641389142276,2.982,3802.8,3802.7,0.9]
[1641389142473,2.982,3802.8,3802.7,2.3]
[1641389142674,2.982,3802.8,3802.7,0.3]
[1641389142873,2.982,3802.8,3802.7,2.6]
[1641389143315,2.982,3802.8,3802.7,2.3]
[1641389144320,2.982,3802.8,3802.6,1.57021339]
[1641389144619,2.982,3802.8,3802.7,2.0]
[1641389145019,2.9842737,3802.8,3802.7,2.0]
[1641389145620,2.9842737,3802.8,3802.7,5.23952505]
[1641389146419,2.9842737,3802.8,3802.7,3.23952505]
[1641389146620,2.9842737,3802.8,3802.7,5.23952505]
[1641389147951,2.9842737,3802.8,3802.7,3.23952505]
[1641389148155,7.9842737,3802.8,3802.7,5.23952505]
[1641389148356,7.9842737,3802.8,3802.7,3.23952505]
[1641389148757,8.69221734,3802.8,3802.7,5.23952505]
[1641389149962,8.69221734,3802.8,3802.7,3.23952505]
[1641389150160,8.69221734,3802.8,3802.7,5.23952505]
[1641389150809,1.31522,3802.0,3801.3,3.24331004]
[1641389151011,0.65759,3801.8,3801.3,3.24331004]
[1641389151208,0.6575876,3801.6,3801.4,0.00568423]
[1641389151808,1.2575876,3801.6,3801.4,0.00568423]
[1641389152008,0.382,3801.5,3801.4,0.00568423]
[1641389152408,1.31539,3801.3,3801.0,1.1934]
[1641389152614,0.382,3801.2,3800.8,0.08703086]
[1641389152811,0.632,3801.2,3800.8,0.08703086]
[1641389153213,0.632,3801.2,3800.9,0.00113685]
[1641389153412,0.6577,3801.1,3800.9,0.00113685]
[1641389153712,1.6974,3801.1,3800.9,0.00113685]
[1641389153911,0.3,3801.0,3800.9,0.00113685]
[1641389154312,0.9576988,3801.0,3800.9,0.00113685]
[1641389154567,0.9576988,3801.0,3800.9,0.65879685]
[1641389155968,3.0127976,3801.1,3800.9,0.65879685]
[1641389156168,0.3,3801.0,3800.9,0.65879685]
[1641389156369,3.3127976,3801.1,3800.9,0.65879685]
[1641389156768,3.0127976,3801.1,3800.9,0.65879685]
[1641389157171,0.9576988,3801.0,3800.9,0.00113685]
[1641389159619,0.6576988,3801.0,3800.9,0.00113685]
[1641389160018,0.6577,3801.1,3800.9,0.65866685]
[1641389160521,0.6577,3801.1,3800.9,1.65866685]
[1641389160717,0.6577,3801.1,3800.9,0.65866685]
[1641389160917,0.6577,3801.1,3800.9,1.65866685]
[1641389161518,0.3,3801.0,3800.9,1.65866685]
[1641389161952,5.3,3801.0,3800.9,1.65866685]
[1641389162153,5.3,3801.0,3800.9,4.90866685]
[1641389163554,5.3,3801.0,3800.9,1.65866685]
[1641389163754,5.3,3801.0,3800.9,0.65866685]
[1641389164159,5.3,3801.0,3800.9,3.65866685]
[1641389166213,5.3,3801.0,3800.9,7.40866685]
[1641389166415,5.3,3801.0,3800.9,3.65866685]
[1641389167014,5.3,3801.0,3800.9,4.92565491]
[1641389167816,5.3,3801.0,3800.9,3.65866685]
[1641389170963,5.3,3801.0,3800.9,6.50866685]
[1641389171361,5.3,3801.0,3800.9,8.7963582]
[1641389171561,1.73096429,3801.0,3800.9,8.7963582]
[1641389172161,5.23096429,3801.0,3800.9,8.7963582]
[1641389176118,5.23096429,3801.0,3800.9,12.17659399]
[1641389176515,5.23096429,3801.0,3800.9,6.32659399]
[1641389176715,6.18855779,3801.0,3800.9,6.32659399]
[1641389177561,6.18855779,3801.0,3800.9,5.66906399]
[1641389178367,6.18855779,3801.0,3800.9,2.2888282]
[1641389179168,6.18855779,3801.0,3800.9,1.70772421]
[1641389181312,6.18855779,3801.0,3800.9,0.00113685]
[1641389181708,6.18855779,3801.0,3800.9,2.2888282]
[1641389183012,6.18855779,3801.0,3800.9,7.46448769]
[1641389183212,6.18855779,3801.0,3800.9,2.28769135]
[1641389183914,6.18855779,3801.0,3800.9,5.03769135]
[1641389183915,5.53096429,3801.0,3800.9,5.03769135]
[1641389184313,5.53096429,3801.0,3800.9,7.55996851]
[1641389184569,5.23096429,3801.0,3800.9,5.03769135]
[1641389184868,5.23096429,3801.0,3800.9,7.59183591]
[1641389185971,5.23096429,3801.0,3800.9,10.9720717]
[1641389186869,1.66199987,3801.0,3800.9,10.9720717]
[1641389187270,1.66199987,3801.0,3800.9,7.59183591]
[1641389189910,1.66199987,3801.0,3800.9,8.18478002]
[1641389190712,1.66199987,3801.0,3800.9,7.59183591]
[1641389197312,1.66199987,3801.0,3800.9,5.03769135]
[1641389198112,1.66199987,3801.0,3800.9,2.28769135]
[1641389198716,1.66199987,3801.0,3800.9,6.63769135]
[1641389198919,1.66199987,3801.0,3800.9,9.26576313]
[1641389201967,1.66199987,3801.0,3800.9,9.56576313]
[1641389202666,2.6,3801.5,3801.1,0.65754]
[1641389202864,2.6,3801.5,3801.4,1.09843566]
[1641389203507,2.6,3801.5,3801.4,5.09813084]
[1641389203910,2.6,3801.5,3801.4,4.04366701]
[1641389204109,2.6,3801.5,3801.4,1.75597566]
[1641389204309,2.6,3801.5,3801.4,0.65754]
[1641389204516,2.6,3801.5,3801.3,3.60277135]
[1641389204913,0.00170527,3801.4,3801.3,2.28769135]
[1641389205114,0.00170527,3801.4,3801.1,3.38023579]
[1641389205517,0.00113685,3801.3,3801.1,3.38023579]
[1641389205917,0.65766,3801.1,3800.8,4.66942251]
[1641389207966,0.65766,3801.1,3800.9,0.65765]
[1641389209168,0.65766,3801.1,3801.0,2.5609637]
[1641389211912,0.65867685,3801.3,3801.0,2.5609637]
[1641389212112,0.65867685,3801.3,3801.1,0.65752]
[1641389212416,0.00113685,3801.3,3801.2,2.64389917]
[1641389213014,0.00113685,3801.3,3801.1,0.65752]
[1641389215565,0.00113685,3801.3,3801.2,3.35]
[1641389217866,0.00113685,3801.3,3801.2,6.06081719]
[1641389218311,0.00113685,3801.3,3801.2,6.36081719]
[1641389218510,2.6,3801.5,3801.4,7.45736]
[1641389218711,2.6,3801.5,3801.4,13.01740372]
[1641389218912,0.00364702,3801.7,3801.5,6.8]
[1641389219110,11.1191,3802.8,3801.7,6.8]
[1641389219309,11.1191,3802.8,3802.0,1.97188]
[1641389219514,3.5,3802.8,3802.1,3.06398837]
[1641389219714,1.5952,3803.3,3802.4,1.31457]
[1641389219913,0.382,3803.3,3802.6,1.18447881]
[1641389220116,0.65729,3803.0,3802.6,1.18447881]
[1641389220319,1.32539004,3803.2,3802.3,2.74783546]
[1641389220514,0.00909477,3802.9,3802.3,2.74783546]
[1641389220715,0.01023162,3803.1,3802.3,2.74783546]
[1641389220914,0.00852635,3802.8,3802.6,1.31463]
[1641389221216,1.3147,3802.9,3802.7,1.95907552]
[1641389221415,1.3147,3802.9,3802.7,2.61638552]
[1641389221615,0.00966319,3803.0,3802.8,3.88853086]